Cogmind - Beta 17 @@@ ROGUE MODE // 2026.07.14 @ 12:36:18 // Winter2019/RPGLIKE Player: Gallgagger Result: Self-destructed Performance ------------- Evolutions (2) 1000 Regions Visited (5) 1000 Robots Destroyed (5) 25 Value Destroyed (50) 50 Prototype IDs (23) 460 Alien Tech Used (0) 0 Bonus (300) 300 TOTAL SCORE: 2835 Bonus ------- Aligned with FarCom 300 Cogmind --------- Core Integrity 358/600 Matter 255/300 Energy 250/250 System Corruption 0% Temperature Cool (0) Movement Core (50) Location -8/Materials Parts ------- > --- POWER (1) -------- Ion Engine > --- PROPULSION (1) --- Flight Unit > --- UTILITY (1) ------ (None) > --- WEAPON (1) ------- Field Lobotomy Kit > --- INVENTORY (0) ---- (None) Peak State ------------ > --- POWER ------------ Ion Engine > --- PROPULSION ------- Flight Unit > --- UTILITY ---------- (None) > --- WEAPON ----------- Field Lobotomy Kit > --- INVENTORY -------- (None) [Rating: 12] Favorites ----------- Power Ion Engine Engine Ion Engine Propulsion Flight Unit Flight Unit Flight Unit Utility None Weapon Assault Rifle Ballistic Gun Assault Rifle Special Weapon Field Lobotomy Kit Build | -11 -10 -10 -10 -9 -8 ------- Run | Yrd Mat Min Exi Min Mat Slots Evolved . | . . . . . . Power . | . . . . . . Propulsion . | . . . . . . Utility . | . . . . . . Weapon . | . . . . . . Parts Attached 6 | 3 1 1 1 . . Power 1 | 1 . . . . . Engine 1 | 1 . . . . . Core . | . . . . . . Reactor . | . . . . . . Propulsion 2 | . 1 1 . . . Treads . | . . . . . . Leg . | . . . . . . Wheel . | . . . . . . Hover . | . . . . . . Flight 2 | . 1 1 . . . Utility . | . . . . . . Device . | . . . . . . Storage . | . . . . . . Processor . | . . . . . . Hackware . | . . . . . . Protection . | . . . . . . Artifact . | . . . . . . Weapon 3 | 2 . . 1 . . Energy Gun . | . . . . . . Energy Cannon . | . . . . . . Ballistic Gun 2 | 2 . . . . . Ballistic Cannon . | . . . . . . Launcher . | . . . . . . Special Weapon 1 | . . . 1 . . Impact Weapon . | . . . . . . Slashing Weapon . | . . . . . . Piercing Weapon . | . . . . . . Special Melee Weapon . | . . . . . . Unidentified Prototypes . | . . . . . . Parts Lost 1 | . . 1 . . . Power . | . . . . . . Propulsion 1 | . . 1 . . . Utility . | . . . . . . Weapon . | . . . . . . Highest Loss Streak 1 | . . 1 . . . To Critical Strikes . | . . . . . . Average Backups . | . . . . . . Power . | . . . . . . Propulsion . | . . . . . . Utility . | . . . . . . Weapon . | . . . . . . Tool/Special . | . . . . . . Unused Backups . | . . . . . . Power . | . . . . . . Propulsion . | . . . . . . Utility . | . . . . . . Weapon . | . . . . . . Tool/Special . | . . . . . . Average Slot Usage (%) 65 | . 56 69 75 75 . Engine 25 | . 25 25 25 25 . Flight 15 | . 6 19 25 25 . Ballistic Gun 20 | . 25 25 13 . . Special Weapon 4 | . . . 11 25 . Peak Build Rating 12 | 2 3 3 12 12 . Average Rating 3 | 1 2 2 7 12 . On Entrance 5 | . 2 3 3 12 12 Avg Prop Armor Cover (%) 6 | . . . 6 6 . Naked Turns . | . . . . . . Heaviest Build 13 | 7 7 7 13 13 . Greatest Support 19 | 8 9 9 19 18 . Greatest Overweight (x) . | . . . . . . Average Overweight (x) . | . . . . . . Largest Inventory Capacity . | . . . . . . Average Capacity . | . . . . . . Most Carried . | . . . . . . Average Carried . | . . . . . . Final Capacity . | . . . . . . Final Carried . | . . . . . . Class Distribution -------------------- 100% | Mutant Dominant Class ---------------- Mutant | -10/Materials Mutant | -10/Mines Mutant | -10/Exiles Mutant | -9/Mines Mutant | -8/Materials Resources | -11 -10 -10 -10 -9 -8 ----------- Run | Yrd Mat Min Exi Min Mat Matter Collected 237 | 124 57 56 . . . Remotely . | . . . . . . Salvage Created 60 | . 39 21 . . . Parts 10 | . 3 7 . . . Haulers Intercepted . | . . . . . . Recyclers Shooed . | . . . . . . Parts Field Recycled . | . . . . . . Retrieved Matter . | . . . . . . Parts Self-Destructed . | . . . . . . Prevented . | . . . . . . Parts Restored . | . . . . . . Kills | -11 -10 -10 -10 -9 -8 ------- Run | Yrd Mat Min Exi Min Mat Combat Hostiles Destroyed 5 | . 2 3 . . . Guns 5 | . 2 3 . . . Classes Destroyed 1 | . 1 . . . . Swarmer 5 | . 2 3 . . . Best Kill Streak 3 | . 2 3 . . . Combat Bots Only 3 | . 2 3 . . . Max Kills in Single Turn 1 | . 1 1 . . . Gunslinging . | . . . . . . Exploded . | . . . . . . Melee . | . . . . . . Uniques/NPCs Destroyed . | . . . . . . Combat | -11 -10 -10 -10 -9 -8 -------- Run | Yrd Mat Min Exi Min Mat Hostile Shots Fired 67 | . 40 19 . 8 . Missed 27 | . 20 6 . 1 . Hits 40 | . 20 13 . 7 . Projectile 40 | . 20 13 . 7 . Damage Taken 378 | . 190 92 37 59 . Core 326 | . 158 84 29 55 . Absorbed by Shields . | . . . . . . Redirected to Core 156 | . 97 19 29 11 . Core Remaining (%) 79 | 100 . . . 59 . Volleys Fired 16 | . 6 10 . . . Largest 1 | . 1 1 . . . Hottest 20 | . 20 20 . . . Shots Fired 16 | . 6 10 . . . Gun 16 | . 6 10 . . . Cannon . | . . . . . . Launcher . | . . . . . . Special . | . . . . . . Kinetic 16 | . 6 10 . . . Thermal . | . . . . . . Explosive . | . . . . . . Electromagnetic . | . . . . . . Robot Hit Streak 3 | . 1 3 . . . Robot Miss Streak 1 | . 1 1 . . . Penetration Max . | . . . . . . Secondary Targets . | . . . . . . Shots Hit Robots 8 | . 2 6 . . . Core Hits 6 | . 2 3 . 1 . Critical Kills . | . . . . . . Critical Parts Destroyed . | . . . . . . Critical Strikes . | . . . . . . Melee Attacks . | . . . . . . Impact . | . . . . . . Slashing . | . . . . . . Piercing . | . . . . . . Sneak Attacks . | . . . . . . Combat Hostiles . | . . . . . . Follow-up Attacks . | . . . . . . Damage Inflicted 162 | . 39 79 37 7 . Guns 118 | . 39 79 . . . Cannons . | . . . . . . Explosions . | . . . . . . Melee . | . . . . . . Ramming 44 | . . . 37 7 . Kinetic 118 | . 39 79 . . . Thermal . | . . . . . . Explosive . | . . . . . . Electromagnetic . | . . . . . . Impact . | . . . . . . Slashing . | . . . . . . Piercing . | . . . . . . Highest Corruption . | . . . . . . Average Corruption . | . . . . . . Corruption Purged . | . . . . . . Corruption Blocked . | . . . . . . Overload Shots . | . . . . . . Overflow Damage . | . . . . . . Projectiles . | . . . . . . Explosions . | . . . . . . Melee . | . . . . . . Knockbacks . | . . . . . . Impact . | . . . . . . Kinetic . | . . . . . . Secondary . | . . . . . . Self-Inflicted Damage 39 | . . . 37 2 . Shots . | . . . . . . Rammed 5 | . 1 . . 4 . Targets Rammed 5 | . 1 . . 4 . Kicked . | . . . . . . Crushed . | . . . . . . Highest Temperature . | . . . . . . Average Temperature . | . . . . . . Received Heat Transfer 39 | . 39 . . . . Siege Activations . | . . . . . . Martial Activations . | . . . . . . Shielding Activations . | . . . . . . Robots Disrupted . | . . . . . . Combat Hostiles . | . . . . . . Robots Corrupted . | . . . . . . Combat Hostiles . | . . . . . . Parts Fried . | . . . . . . Impact Corruptions . | . . . . . . Robots Melted . | . . . . . . Combat Hostiles . | . . . . . . Parts Melted . | . . . . . . Heat Transferred . | . . . . . . Parts Sabotaged . | . . . . . . Parts Stolen . | . . . . . . Parts Stripped . | . . . . . . Power Chain Reactions . | . . . . . . Alert | -11 -10 -10 -10 -9 -8 ------- Run | Yrd Mat Min Exi Min Mat Maximum Alert Level . | . . . . . . Low Security (%) 100 | 100 100 100 . 100 . Level 1 . | . . . . . . Level 2 . | . . . . . . Level 3 . | . . . . . . Level 4 . | . . . . . . Level 5 . | . . . . . . High Security . | . . . . . . Max Security . | . . . . . . Peak Influence 95 | . 65 95 . . . Initial 17 | . . 17 . . . Average 23 | . 17 38 . . . Influence Increases 180 | . 65 115 . . . Destroy 0b10 Robot/C 100 | . 40 60 . . . Destroy Leader 20 | . 10 10 . . . Lose Combat Pursuer 60 | . 15 45 . . . Influence Decreases 180 | . 20 85 75 . . Entered New Map 103 | . . 28 75 . . Time Decay 67 | . 20 47 . . . Lost Part 10 | . . 10 . . . Squads Dispatched 3 | . 3 . . . . Investigation . | . . . . . . Extermination . | . . . . . . Reinforcement 3 | . 3 . . . . Assault . | . . . . . . Garrison . | . . . . . . Intercept . | . . . . . . Searches Triggered . | . . . . . . Construction Impeded . | . . . . . . Haulers Reinforced . | . . . . . . Active Scanning Responses . | . . . . . . Cargo Convoy Interrupts . | . . . . . . Stealth | -11 -10 -10 -10 -9 -8 --------- Run | Yrd Mat Min Exi Min Mat Distress Signals 1 | . 1 . . . . Communications Jammed . | . . . . . . Distress Signals . | . . . . . . Times Spotted 26 | . 17 5 1 3 . Peak Tracking Total 10 | . 10 3 10 3 . Tactical Retreats 2 | . 1 1 . . . Traps | -11 -10 -10 -10 -9 -8 ------- Run | Yrd Mat Min Exi Min Mat Traps Triggered . | . . . . . . Indirectly . | . . . . . . Trap Hack Attempts . | . . . . . . Triggered . | . . . . . . Disarmed . | . . . . . . Reprogrammed . | . . . . . . Reused . | . . . . . . Traps Extracted . | . . . . . . Installed . | . . . . . . Triggered . | . . . . . . Machines | -11 -10 -10 -10 -9 -8 ---------- Run | Yrd Mat Min Exi Min Mat Machines Disabled 1 | . . . 1 . . Max in Single Turn 1 | . . . 1 . . Machines Repaired . | . . . . . . Machines Dismantled . | . . . . . . Machines Sabotaged . | . . . . . . Overloaded Fab Kills . | . . . . . . Hacking | -11 -10 -10 -10 -9 -8 --------- Run | Yrd Mat Min Exi Min Mat Machines Accessed 1 | . . . 1 . . Terminals . | . . . . . . Fabricators . | . . . . . . Repair Stations . | . . . . . . Recycling Units . | . . . . . . Scanalyzers . | . . . . . . Garrison Access . | . . . . . . Total Hacks 1 | . . . 1 . . Successful 1 | . . . 1 . . Failed . | . . . . . . Catastrophic . | . . . . . . Database Lockouts . | . . . . . . Manual 1 | . . . 1 . . Terminals . | . . . . . . Fabricators . | . . . . . . Repair Stations . | . . . . . . Recycling Units . | . . . . . . Scanalyzers . | . . . . . . Garrison Access . | . . . . . . Terminal Hacks 1 | . . . 1 . . Proto ID Catalog 1 | . . . 1 . . Fabricator Hacks . | . . . . . . Repair Station Hacks . | . . . . . . Recycling Unit Hacks . | . . . . . . Scanalyzer . | . . . . . . Garrison Access Hacks . | . . . . . . Unauthorized Hacks . | . . . . . . Terminals . | . . . . . . Fabricators . | . . . . . . Repair Stations . | . . . . . . Recycling Units . | . . . . . . Scanalyzers . | . . . . . . Garrison Access . | . . . . . . Data Cores Recovered . | . . . . . . Used . | . . . . . . Hacking Detections . | . . . . . . Full Trace Events . | . . . . . . Feedback Events . | . . . . . . Feedback Blocked . | . . . . . . Robot Schematics Acquired . | . . . . . . Robots Built . | . . . . . . Authchips . | . . . . . . Time . | . . . . . . Total Robot Build Rating . | . . . . . . Part Schematics Acquired . | . . . . . . Parts Built . | . . . . . . Authchips . | . . . . . . Time . | . . . . . . Total Part Build Rating . | . . . . . . Part Studies Acquired . | . . . . . . Parts Repaired . | . . . . . . Time . | . . . . . . Parts Recycled . | . . . . . . Recycled Matter . | . . . . . . Retrieved Matter . | . . . . . . Retrieved Components . | . . . . . . Parts Scanalyzed . | . . . . . . Part Schematics Acquired . | . . . . . . Parts Damaged . | . . . . . . Bothacking | -11 -10 -10 -10 -9 -8 ------------ Run | Yrd Mat Min Exi Min Mat Used RIF Installer . | . . . . . . Robots Hacked . | . . . . . . Non-combat . | . . . . . . Combat . | . . . . . . Robot Hacks Applied . | . . . . . . Relay Couplers Released . | . . . . . . Fabnet Peak Effective % . | . . . . . . Robots Rewired . | . . . . . . Allies Hacked . | . . . . . . Hacks Repelled . | . . . . . . Allies | -11 -10 -10 -10 -9 -8 -------- Run | Yrd Mat Min Exi Min Mat Total Allies 1 | . . 1 . . . Largest Group 1 | . . 1 . . . Highest-Rated Group 31 | . . 31 . . . Highest-Rated Ally 31 | . . 31 . . . Total Orders . | . . . . . . Ally Attacks . | . . . . . . Total Damage . | . . . . . . Kills . | . . . . . . Allies Corrupted . | . . . . . . Allies Melted . | . . . . . . Intel | -11 -10 -10 -10 -9 -8 ------- Run | Yrd Mat Min Exi Min Mat Active Infowar (turns) . | . . . . . . Robot Analysis Total . | . . . . . . Derelict Logs Recovered 1 | . . . . 1 . Drone Launches . | . . . . . . Drone Recoveries . | . . . . . . Exploration | -11 -10 -10 -10 -9 -8 ------------- Run | Yrd Mat Min Exi Min Mat Turns Passed 451 | 24 179 132 99 17 . Spaces Moved 901 | 38 347 258 233 25 . Core 339 | 38 233 6 37 25 . Treads . | . . . . . . Legs . | . . . . . . Wheels . | . . . . . . Hover . | . . . . . . Flight 562 | . 114 252 196 . . Fastest Speed 40 | 50 40 40 40 50 . Average Speed 43 | 50 46 40 41 50 . Slowest Speed 50 | 50 50 50 50 50 . Overloaded Moves . | . . . . . . Propulsion Burnouts . | . . . . . . Robots Hopped 10 | . 7 3 . . . Potential Cave-ins . | . . . . . . Cave-ins Triggered . | . . . . . . Exploration Rate (%) 38 | 3 65 49 61 12 . Regions Visited 5 Branch Regions 3 Pre-discovered Areas . | . . . . . . Known Exits Taken . | . . . . . . Unknown Exits Taken 5 | 1 1 1 1 1 . Scrap Searched 1 | . . 1 . . . Spaces Dug . | . . . . . . Terrain Destroyed . | . . . . . . Melee . | . . . . . . Projectile . | . . . . . . AOE . | . . . . . . Terrain Rammed 1 | . . . 1 . . Walls Destroyed . | . . . . . . Machines Disabled 1 | . . . 1 . . Actions | -11 -10 -10 -10 -9 -8 --------- Run | Yrd Mat Min Exi Min Mat Total 924 | 41 349 272 234 28 . Wait 5 | . 2 3 . . . Move 877 | 37 333 251 232 24 . Hop 9 | . 6 3 . . . Pick Up . | . . . . . . Fast Attach 4 | 2 1 1 . . . Attach . | . . . . . . Detach . | . . . . . . Swap 2 | 1 . . 1 . . Drop 1 | 1 . . . . . Fire 16 | . 6 10 . . . Melee . | . . . . . . Ram 6 | . 1 . 1 4 . Kick . | . . . . . . Crush . | . . . . . . Escape Stasis . | . . . . . . Rewire . | . . . . . . Trap . | . . . . . . Miscellaneous 4 | . . 4 . . . Route ------- -11/Scrapyard -10/Materials (discovered 4 exits: [*Mat x3] / [*Min]) -10/Mines -10/Exiles -9/Mines -8/Materials History --------- Turn | Location | Event 8 | -11/Scrapyard | Discovered new exit (range 16) 25 | -11/Scrapyard | Entered Materials 60 | -10/Materials | Discovered new exit (range 4) 92 | -10/Materials | Discovered new exit (range 16) 193 | -10/Materials | Discovered new exit (range 4) 198 | -10/Materials | Discovered new exit (range 15) 204 | -10/Materials | Entered Mines 232 | -10/Mines | Received a Mining Laser from a helpful Derelict 321 | -10/Mines | Build established: Mutant 326 | -10/Mines | Assembled infested the area 334 | -10/Mines | Deemed a non-threat by the Exiles lab entrance 335 | -10/Mines | Discovered new exit (range 5) 336 | -10/Mines | Entered Exiles 347 | -10/Exiles | Met 8R-AWN 353 | -10/Exiles | Met EX-HEX 365 | -10/Exiles | Met EX-BIN 371 | -10/Exiles | Aligned with FarCom system 371 | -10/Exiles | Given EX-Vault access code 380 | -10/Exiles | Opened EX-Vault 384 | -10/Exiles | Found Field Lobotomy Kit 393 | -10/Exiles | Warned to stay clear of 0b10 Research branches 406 | -10/Exiles | Met EX-DEC 417 | -10/Exiles | Attacked by the Exiles 431 | -10/Exiles | Discovered new exit (range 10) 435 | -10/Exiles | Left Exiles lab with Field Lobotomy Kit 435 | -10/Exiles | Entered Mines 437 | -9/Mines | Reached level 2 441 | -9/Mines | Learned location of 1 exit from Materials 446 | -9/Mines | Discovered new exit (range 9) 452 | -9/Mines | Entered Materials 452 | -8/Materials | Self-destructed Last Messages --------------- 00408_ EX-DEC: "Oops, I hope HEX didn't hear that..." 00416_ Slammed into Machine. 00416_ Machine disabled. 00416_ Flight Unit broken. 00416_ Destabilizing: Short circuit. 00416_ Field Lobotomy Kit broken. 00416_ Destabilizing: Short circuit. 00417_ EXILES: Hostile robot within lab perimeter. Defensive protocols time, folks! 00419_ EX-DEC: "Let's see what this bad boy can do..." 00431_ EXIT=FOUND LOCATION=UNKNOWN GOAL=ESCAPE 00437_ Reached level 2. 00441_ Acquired derelict log, extracted data. Data stored: Materials exits (x1). 00446_ EXIT=FOUND 00447_ Slammed into S-10 Pest. LOCATION=UNKNOWN GOAL=ESCAPE Map ----- +----------------------------------------------------+ | ?????????????????????????????????????????????????? | | ?????????????????????????????????????????????????? | | ?????????????????????????????????????????????????? | | ?????????????????????????????????????????????????? | | ?????????????????????????????????????????????????? | | ?????????????????????????????????????????????????? | | ?????????????????????????????????????????????????? | | ?????????????????????????????????????????????????? | | ?????????????????????????????????????????????????? | | ?????????????????????????????????????????????????? | | ?????????????????????????????????????????????????? | | ?????????????????????????????????????????????????? | | ?????????????????????????????????????????????????? | | ?????????????????????????????????????????????????? | | ?????????????????????????????????????????????????? | | ?????????????????????????????????????????????????? | | ?????????????????????????????????????????????????? | | ?????????????????????????????????????????????????? | | ?????????????????????????????????????????????????? | | ?????????????????????####+####???????????????????? | | ????????????????????? ???????????????????? | | ?????????????????????? ????????????????????? | | ??????????????????????? ?????????????????????? | | ???????????????????????# #?????????????????????? | | ???????????????????????# #?????????????????????? | | ???????????????????????# @ #?????????????????????? | | ???????????????????????# #?????????????????????? | | ???????????????????????#####?????????????????????? | | ?????????????????????????????????????????????????? | | ?????????????????????????????????????????????????? | | ?????????????????????????????????????????????????? | | ?????????????????????????????????????????????????? | | ?????????????????????????????????????????????????? | | ?????????????????????????????????????????????????? | | ?????????????????????????????????????????????????? | | ?????????????????????????????????????????????????? | | | | | | | | | | | | | | | | | | | | | | | | | | | | | +----------------------------------------------------+ Best States ------------- Heat Dissipation 25 Energy Generation 10 Energy Capacity 250 Matter Stores 251 Matter Capacity 300 Sight Range 16 Terrain Scan Density 10 Evasion (%) 62 Item Schematics ----------------- None Robot Schematics ------------------ None Fabricated ------------ Nothing Repaired ---------- Nothing Studied --------- None Alien Tech Used ----------------- None Achievements -------------- None Challenges ------------ None RPGLIKE | -11 -10 -10 -10 -9 -8 --------- Run | Yrd Mat Min Exi Min Mat Levels Raised 1 | . . . . 1 . XP Earned 4950 | 3000 250 850 350 500 . XP Spent 1800 | 100 . . 1700 . . Upgrades 3 | 1 . . 2 . . Mass Support 3 | 1 . . 2 . . Protomatter Created 28 | . . 28 . . . Integrity Restored 84 | . . 84 . . . Core 84 | . . 84 . . . Protomatter Decayed . | . . . . . . Game ------ Seed SapperAlloyChaincannon Manual? 0 Play Time 00:03:31 Cumulative 660.5 hours Start 2026.07.14 @ 12:32:53 End 2026.07.14 @ 12:36:18 Sessions 1 Manual Loads 0 Difficulty Rogue Special Mode Winter2019/RPGLIKE Game No. 271 Rogue 117 Adventurer 154 Explorer 0 Win Type - Total 22 Types 4/5/4/3/2/1/0/1/1/1 Lore% 95 Gallery% 88 Achievement% 68 Wizard Run 0 Options --------- Layout 0 ASCII 0 Keyboard 0 Movement Numpad Keybinds 0 Fullscreen 2 Font 18/SmallcapsGlow Map View 76x50 Zoom Use 0% Tactical HUD 1 Map Filters NONE Filters NONE Steam 1 RUN: 097bdf19-ca98-4506-b9a8-5ebe4dec825a